bitfinex/quotes_BTCUSD_20251226
["timestamp","ask_amount","ask_price","bid_price","bid_amount"]
[1766726735079,0.01124441,88933.0,88921.0,0.12081]
[1766726735331,0.01054156,88932.0,88921.0,0.12081]
[1766726735537,0.01124441,88933.0,88921.0,0.12081]
[1766726735739,0.0105415,88932.0,88921.0,0.12081]
[1766726735914,0.01124479,88930.0,88921.0,0.12081]
[1766726736083,0.01124467,88931.0,88921.0,0.12081]
[1766726740406,0.01124479,88930.0,88921.0,0.12081]
[1766726740825,0.01124467,88931.0,88921.0,0.12081]
[1766726741548,0.02178792,88930.0,88921.0,0.12081]
[1766726741748,0.01124479,88930.0,88921.0,0.12081]
[1766726741950,0.01124467,88931.0,88921.0,0.12081]
[1766726742160,0.01054313,88930.0,88921.0,0.12081]
[1766726742359,0.01124454,88932.0,88921.0,0.12081]
[1766726742566,0.02178825,88931.0,88921.0,0.12081]
[1766726742760,0.01124454,88932.0,88921.0,0.12081]
[1766726742761,0.01054358,88930.0,88921.0,0.12081]
[1766726742927,0.01124454,88932.0,88921.0,0.12081]
[1766726743134,0.01054358,88931.0,88921.0,0.12081]
[1766726743334,0.01054358,88930.0,88921.0,0.12081]
[1766726743575,0.01124467,88931.0,88921.0,0.12081]
[1766726743777,0.01054406,88930.0,88921.0,0.12081]
[1766726744030,0.01124454,88932.0,88921.0,0.12081]
[1766726744275,0.02178873,88931.0,88921.0,0.12081]
[1766726744473,0.01054406,88930.0,88921.0,0.12081]
[1766726744786,0.01124467,88931.0,88921.0,0.12081]
[1766726744989,0.01054463,88930.0,88921.0,0.12081]
[1766726745186,0.01124467,88931.0,88921.0,0.12081]
[1766726745390,0.01054463,88930.0,88921.0,0.12081]
[1766726745572,0.01124467,88931.0,88921.0,0.12081]
[1766726745779,0.01054529,88930.0,88921.0,0.12081]
[1766726745975,0.01124467,88931.0,88921.0,0.12081]
[1766726746197,0.01054529,88930.0,88921.0,0.12081]
[1766726746422,0.01124479,88930.0,88921.0,0.12081]
[1766726747509,0.01054684,88929.0,88921.0,0.12081]
[1766726747642,0.01124479,88930.0,88921.0,0.12081]
[1766726747861,0.01054684,88929.0,88921.0,0.12081]
[1766726748188,0.01124467,88931.0,88921.0,0.12081]
[1766726748189,0.01124479,88930.0,88921.0,0.12081]
[1766726748373,0.01054684,88929.0,88921.0,0.12081]
[1766726748575,0.01124467,88931.0,88921.0,0.12081]
[1766726748775,0.01054793,88930.0,88921.0,0.12081]
[1766726748999,0.01054793,88929.0,88921.0,0.12081]
[1766726749152,0.01124467,88931.0,88921.0,0.12081]
[1766726749360,0.02179272,88930.0,88921.0,0.12081]
[1766726749571,0.01054793,88929.0,88921.0,0.12081]
[1766726750013,0.01124467,88931.0,88921.0,0.12081]
[1766726750169,0.01054865,88930.0,88921.0,0.12081]
[1766726750387,0.01054865,88929.0,88921.0,0.12081]
[1766726750569,0.01124454,88932.0,88921.0,0.12081]
[1766726750768,0.02179422,88931.0,88921.0,0.12081]
[1766726751023,0.01054955,88930.0,88921.0,0.12081]
[1766726751228,0.01054955,88929.0,88921.0,0.12081]
[1766726751429,0.01054955,88928.0,88921.0,0.12081]
[1766726751648,0.01124467,88931.0,88921.0,0.12081]
[1766726751836,0.01055094,88930.0,88921.0,0.12081]
[1766726752002,0.01055094,88929.0,88921.0,0.12081]
[1766726752201,0.01055094,88928.0,88921.0,0.12081]
[1766726752402,0.01124467,88931.0,88921.0,0.12081]
[1766726752608,0.01055094,88930.0,88921.0,0.12081]
[1766726752833,0.01055094,88929.0,88921.0,0.12081]
[1766726753042,9.4e-07,88928.0,88921.0,0.11596]
[1766726753267,0.01124454,88932.0,88921.0,0.11596]
[1766726754674,0.06746692,88933.0,88921.0,0.11596]
[1766726754975,0.01132497,88934.0,88921.0,0.11596]
[1766726755272,8.068e-05,88934.0,88921.0,0.12720593]
[1766726755577,8.068e-05,88934.0,88921.0,0.11596]
[1766726755578,0.01132497,88934.0,88921.0,0.11596]
[1766726756094,0.01124441,88933.0,88921.0,0.11596]
[1766726756650,0.01124454,88932.0,88921.0,0.11596]
[1766726758876,0.01124441,88933.0,88921.0,0.11596]
[1766726759262,0.01124454,88932.0,88921.0,0.11596]
[1766726759432,0.01124441,88933.0,88921.0,0.11596]
[1766726759638,0.01124454,88932.0,88921.0,0.11596]
[1766726762247,0.01124467,88931.0,88921.0,0.11596]
[1766726762448,0.01124454,88932.0,88921.0,0.11596]
[1766726762590,0.06746783,88932.0,88921.0,0.11596]
[1766726762787,0.09175822,88932.0,88921.0,0.11596]
[1766726762995,0.01124479,88930.0,88921.0,0.11596]
[1766726763219,0.01124467,88931.0,88921.0,0.11596]
[1766726763713,0.03553493,88932.0,88921.0,0.11596]
[1766726764032,0.01124454,88932.0,88921.0,0.11596]
[1766726765107,0.02179646,88931.0,88921.0,0.11596]
[1766726765215,0.01055179,88930.0,88921.0,0.11596]
[1766726765441,0.01055179,88929.0,88921.0,0.11596]
[1766726765646,0.01055179,88928.0,88921.0,0.11596]
[1766726765873,0.01124454,88932.0,88921.0,0.11596]
[1766726766083,0.01055213,88931.0,88921.0,0.11596]
[1766726766398,0.01055213,88930.0,88921.0,0.11596]
[1766726766581,0.01055213,88929.0,88921.0,0.11596]
[1766726766806,0.01055213,88928.0,88921.0,0.11596]
[1766726767031,0.01124454,88932.0,88921.0,0.11596]
[1766726767194,0.01055214,88931.0,88921.0,0.11596]
[1766726767390,0.01055214,88930.0,88921.0,0.11596]
[1766726767642,0.01055214,88929.0,88921.0,0.11596]
[1766726767796,0.01055214,88928.0,88921.0,0.11596]
[1766726768022,0.06746681,88933.0,88921.0,0.11596]
[1766726768176,0.01055214,88932.0,88921.0,0.11596]
[1766726768390,0.01055214,88931.0,88921.0,0.11596]
[1766726768592,0.01055214,88930.0,88921.0,0.11596]
[1766726768844,0.01055214,88929.0,88921.0,0.11596]
[1766726769005,0.01055214,88928.0,88921.0,0.11596]
[1766726769199,0.06746681,88933.0,88921.0,0.11596]
[1766726769444,0.01055214,88932.0,88921.0,0.11596]
[1766726769649,0.01055214,88931.0,88921.0,0.11596]
[1766726769854,0.01055214,88930.0,88921.0,0.11596]
[1766726769995,0.01055214,88929.0,88921.0,0.11596]
[1766726770193,0.01055214,88928.0,88921.0,0.11596]
[1766726770395,0.01124454,88932.0,88921.0,0.11596]
[1766726770623,0.01055214,88931.0,88921.0,0.11596]
[1766726770820,0.01055214,88930.0,88921.0,0.11596]
[1766726771054,0.01055214,88929.0,88921.0,0.11596]
[1766726771253,0.01055214,88928.0,88921.0,0.11596]
[1766726771452,0.01124454,88932.0,88921.0,0.11596]
[1766726771656,0.01055214,88931.0,88921.0,0.11596]
[1766726771855,0.01055214,88930.0,88921.0,0.11596]
[1766726772063,0.01055214,88929.0,88921.0,0.11596]
[1766726772261,0.01055214,88928.0,88921.0,0.11596]
[1766726772438,0.01124467,88931.0,88921.0,0.11596]
[1766726772640,0.01055215,88930.0,88921.0,0.11596]
[1766726772957,0.01055215,88929.0,88921.0,0.11596]
[1766726773162,0.01055215,88928.0,88921.0,0.11596]
[1766726773362,0.01124454,88932.0,88921.0,0.11596]
[1766726773579,0.01055215,88931.0,88921.0,0.11596]
[1766726773775,0.01055215,88930.0,88921.0,0.11596]
[1766726773939,0.01055215,88929.0,88921.0,0.11596]
[1766726774142,0.01055215,88928.0,88921.0,0.11596]
[1766726774400,0.01124467,88931.0,88921.0,0.11596]
[1766726774601,0.01055215,88930.0,88921.0,0.11596]
[1766726774831,0.01055215,88929.0,88921.0,0.11596]
[1766726775032,0.01055215,88928.0,88921.0,0.11596]
[1766726775334,0.01124467,88931.0,88921.0,0.11596]
[1766726775626,0.01055215,88930.0,88921.0,0.11596]
[1766726775937,0.01055215,88929.0,88921.0,0.11596]
[1766726776107,0.01055215,88928.0,88921.0,0.11596]
[1766726776311,0.01124479,88930.0,88921.0,0.11596]
[1766726776511,0.01055215,88929.0,88921.0,0.11596]
[1766726776676,0.01055215,88928.0,88921.0,0.11596]
[1766726776880,0.01124467,88931.0,88921.0,0.11596]
[1766726777082,0.01055215,88930.0,88921.0,0.11596]
[1766726777337,0.01055215,88929.0,88921.0,0.11596]
[1766726777542,0.01124454,88932.0,88921.0,0.11596]
[1766726777543,0.01055215,88928.0,88921.0,0.11596]
[1766726777699,0.01124467,88931.0,88921.0,0.11596]
[1766726777881,0.01055215,88930.0,88921.0,0.11596]
[1766726778081,0.01055215,88929.0,88921.0,0.11596]
[1766726778337,0.01055215,88928.0,88921.0,0.11596]
[1766726778560,0.01124454,88932.0,88921.0,0.11596]
[1766726778838,0.02179682,88931.0,88921.0,0.11596]
[1766726779132,0.01055215,88930.0,88921.0,0.11596]
[1766726779361,0.01055215,88929.0,88921.0,0.11596]
[1766726779546,0.01055215,88928.0,88921.0,0.11596]
[1766726779772,0.01124454,88932.0,88921.0,0.11596]
[1766726779947,0.01055215,88931.0,88921.0,0.11596]
[1766726780268,0.01055215,88930.0,88921.0,0.11596]
[1766726780412,0.01055215,88929.0,88921.0,0.11596]
[1766726780616,0.01055215,88928.0,88921.0,0.11596]
[1766726780812,0.01124441,88933.0,88921.0,0.11596]
[1766726781040,0.0217967,88932.0,88921.0,0.11596]
[1766726781244,0.01055216,88931.0,88921.0,0.11596]
[1766726781445,0.01055216,88930.0,88921.0,0.11596]
[1766726781775,0.01055216,88929.0,88921.0,0.11596]
[1766726781999,0.01055216,88928.0,88921.0,0.11596]
[1766726782186,0.01124441,88933.0,88921.0,0.11596]
[1766726782388,0.0217967,88932.0,88921.0,0.11596]
[1766726782568,0.01055216,88931.0,88921.0,0.11596]
[1766726784309,0.0918373,88934.0,88931.0,0.000549]
[1766726784310,0.02437107,88934.0,88931.0,0.000549]
[1766726784474,8.068e-05,88934.0,88929.0,0.11798]
[1766726784667,8.068e-05,88934.0,88929.0,0.08421953]
[1766726786578,8.068e-05,88934.0,88921.0,0.11798]
[1766726786728,0.01132497,88934.0,88921.0,0.11798]
[1766726787371,0.01124454,88932.0,88921.0,0.11798]
[1766726787573,0.01124441,88933.0,88921.0,0.11798]
[1766726788792,0.01132497,88934.0,88921.0,0.11798]
[1766726788998,0.01124441,88933.0,88921.0,0.11798]
[1766726789775,0.01132497,88934.0,88921.0,0.11798]
[1766726790429,8.068e-05,88934.0,88921.0,0.11798]
[1766726790602,8.068e-05,88934.0,88923.0,0.11798]
[1766726793056,0.01132497,88934.0,88923.0,0.11798]
[1766726794471,0.01124441,88933.0,88923.0,0.11798]
[1766726796245,0.01054959,88932.0,88923.0,0.11798]
[1766726796580,0.01054959,88932.0,88920.0,0.01128]
[1766726796581,0.01124441,88933.0,88921.0,0.11798]
[1766726797416,0.01124467,88931.0,88921.0,0.11798]
[1766726797568,0.01124454,88932.0,88921.0,0.11798]
[1766726800146,0.01124441,88933.0,88921.0,0.11798]
[1766726800297,0.01124429,88934.0,88921.0,0.11798]
[1766726800705,0.01124416,88935.0,88921.0,0.12922593]
[1766726800929,0.0112966,88935.0,88921.0,0.12922593]
[1766726801241,0.01124429,88934.0,88921.0,0.11798]
[1766726801598,0.01124441,88933.0,88921.0,0.11798]
[1766726802327,0.01124429,88934.0,88921.0,0.11798]
[1766726802642,0.03558699,88935.0,88921.0,0.11798]
[1766726802849,5.244e-05,88935.0,88923.0,0.11798]
[1766726803045,0.0112966,88935.0,88923.0,0.11798]
[1766726805162,0.01124429,88934.0,88923.0,0.11798]
[1766726808122,0.01124441,88933.0,88923.0,0.11798]
[1766726808469,0.01055031,88932.0,88923.0,0.11798]
[1766726808680,0.01055031,88931.0,88923.0,0.11798]
[1766726808988,0.01055031,88930.0,88923.0,0.11798]
[1766726809143,0.0112966,88935.0,88923.0,0.11798]
[1766726809339,0.01055031,88934.0,88923.0,0.11798]
[1766726809546,0.01055031,88933.0,88923.0,0.11798]
[1766726809746,0.0112966,88935.0,88923.0,0.11798]
[1766726809951,0.01055048,88934.0,88923.0,0.11798]
[1766726810147,0.01055048,88933.0,88923.0,0.11798]
[1766726810499,0.01055048,88932.0,88923.0,0.11798]
[1766726810628,0.01055048,88931.0,88923.0,0.11798]
[1766726810833,0.01055048,88930.0,88923.0,0.11798]
[1766726811081,0.0112966,88935.0,88923.0,0.11798]
[1766726811082,5.244e-05,88935.0,88923.0,0.11798]
[1766726811282,0.01055067,88934.0,88923.0,0.11798]
[1766726811449,0.01055067,88933.0,88923.0,0.11798]
[1766726811647,0.0112966,88935.0,88923.0,0.11798]
[1766726811648,0.01055067,88932.0,88923.0,0.11798]
[1766726811847,0.01055067,88931.0,88923.0,0.12922568]
[1766726812068,0.01055067,88930.0,88923.0,0.12922568]
[1766726812285,5.244e-05,88935.0,88923.0,0.12922568]
[1766726812467,0.01055119,88934.0,88923.0,0.12922568]
[1766726812668,0.01055119,88933.0,88923.0,0.12922568]
[1766726812887,0.01055119,88932.0,88923.0,0.12922568]
[1766726813088,1.19e-06,88931.0,88923.0,0.01124568]
[1766726813295,5.244e-05,88935.0,88924.0,0.15224]
[1766726815896,5.244e-05,88935.0,88924.0,0.151691]
[1766726815897,0.01124429,88934.0,88924.0,0.151691]
[1766726816098,0.01124441,88933.0,88924.0,0.151691]
[1766726816322,0.01124429,88934.0,88924.0,0.151691]
[1766726816649,0.0112966,88935.0,88924.0,0.15078996]
[1766726816801,5.244e-05,88935.0,88924.0,0.15078996]
[1766726817418,0.0112966,88935.0,88924.0,0.15078996]
[1766726820374,0.01124429,88934.0,88924.0,0.15078996]
[1766726821278,0.0112966,88935.0,88924.0,0.15078996]
[1766726821840,0.01124429,88934.0,88924.0,0.15078996]
[1766726822463,0.0112966,88935.0,88924.0,0.15078996]
[1766726822974,0.01124429,88934.0,88924.0,0.15078996]
[1766726823421,0.0112966,88935.0,88924.0,0.15078996]
[1766726824315,0.01124429,88934.0,88924.0,0.15078996]
[1766726824514,0.0112966,88935.0,88924.0,0.15078996]
[1766726824842,0.01124429,88934.0,88924.0,0.15078996]
[1766726825325,0.01055176,88933.0,88924.0,0.15078996]
[1766726825472,0.01055176,88932.0,88924.0,0.15078996]
[1766726825671,0.01055176,88931.0,88924.0,0.15078996]
[1766726825873,5.244e-05,88935.0,88924.0,0.15078996]
[1766726826058,0.01055174,88934.0,88924.0,0.15078996]
[1766726826263,0.01055174,88933.0,88924.0,0.15078996]
[1766726826517,0.01055174,88932.0,88924.0,0.15078996]
[1766726826657,0.01055174,88931.0,88924.0,0.15078996]
[1766726826865,5.244e-05,88935.0,88924.0,0.15078996]
[1766726827085,0.01055172,88934.0,88924.0,0.15078996]
[1766726827418,0.01055172,88933.0,88924.0,0.15078996]
[1766726827624,0.01055172,88932.0,88924.0,0.15078996]
[1766726827784,0.01055172,88931.0,88924.0,0.15078996]
[1766726828117,5.244e-05,88935.0,88924.0,0.15078996]
[1766726828419,0.01055171,88934.0,88924.0,0.15078996]
[1766726828626,0.01055171,88933.0,88924.0,0.15078996]
[1766726828828,0.01055171,88932.0,88924.0,0.15078996]
[1766726829027,0.01055171,88931.0,88924.0,0.15078996]
[1766726829205,5.244e-05,88935.0,88924.0,0.15078996]
[1766726829414,0.0105517,88934.0,88924.0,0.15078996]
[1766726829619,0.0105517,88933.0,88924.0,0.15078996]
[1766726829793,0.0105517,88932.0,88924.0,0.15078996]
[1766726829993,0.0105517,88931.0,88924.0,0.15078996]
[1766726830224,0.01124391,88937.0,88921.0,0.01124593]
[1766726830427,0.09175213,88940.0,88926.0,0.15224]
[1766726830592,0.01124391,88937.0,88926.0,0.15224]
[1766726830817,0.01128,88936.0,88926.0,0.15224]
[1766726831028,0.02252404,88936.0,88926.0,0.15224]
[1766726831239,0.01128,88936.0,88926.0,0.15224]
[1766726831613,0.02252404,88936.0,88926.0,0.15224]
[1766726832348,0.01128,88936.0,88926.0,0.15224]
[1766726832981,0.02252404,88936.0,88926.0,0.15224]
[1766726833456,0.01128,88936.0,88926.0,0.15224]
[1766726835022,0.01124416,88935.0,88926.0,0.15224]
[1766726835262,0.01124454,88932.0,88926.0,0.151691]
[1766726835496,0.01124467,88931.0,88921.0,0.00010778]
[1766726835918,0.01124479,88930.0,88921.0,0.00010778]
[1766726836126,0.01124492,88929.0,88921.0,0.00010778]
[1766726836305,0.05622589,88927.0,88921.0,0.00010778]
[1766726836512,0.0112453,88926.0,88921.0,0.00010778]
[1766726837129,0.06747293,88925.0,88921.0,0.00010778]
[1766726837358,0.01124555,88924.0,88921.0,0.00010778]
[1766726840118,0.01124543,88925.0,88921.0,0.00010778]
[1766726841087,0.0112453,88926.0,88921.0,0.00010778]
[1766726842940,0.02430518,88928.0,88926.0,0.000106]
[1766726843134,0.01128,88929.0,88926.0,0.000106]
[1766726843135,0.01128,88929.0,88928.0,0.00055]
[1766726843481,0.01128,88929.0,88922.0,0.18262]
[1766726844642,0.011174,88929.0,88922.0,0.18262]
[1766726845053,0.011174,88929.0,88922.0,0.19386581]
[1766726845369,0.011174,88929.0,88922.0,0.18262]
[1766726853164,0.03554959,88934.0,88922.0,0.19386581]
[1766726853363,0.02182782,88933.0,88923.0,0.19386568]
[1766726853682,0.01054782,88932.0,88924.0,0.18262]
[1766726853879,0.01128,88933.0,88924.0,0.18262]
[1766726854199,0.01054767,88932.0,88924.0,0.18262]
[1766726854404,0.01128,88933.0,88924.0,0.18262]
[1766726854723,0.01054766,88932.0,88924.0,0.18262]
[1766726854926,0.01054766,88931.0,88924.0,0.16881674]
[1766726855124,0.01124492,88929.0,88921.0,0.00010778]
[1766726855679,0.06746804,88931.0,88921.0,0.00010778]
[1766726855935,0.01124479,88930.0,88921.0,0.00010778]
[1766726856133,0.06746804,88931.0,88921.0,0.00010778]
[1766726856309,0.01124467,88931.0,88921.0,0.00010778]
[1766726856513,0.01128,88933.0,88921.0,0.18272778]
[1766726856692,0.02179245,88932.0,88921.0,0.18272778]
[1766726856895,0.01054791,88931.0,88921.0,0.18272778]
[1766726857098,0.02252441,88933.0,88921.0,0.18272778]
[1766726857319,0.01054791,88932.0,88921.0,0.18272778]
[1766726857521,0.01054791,88931.0,88921.0,0.18272778]
[1766726858593,0.02179258,88931.0,88921.0,0.18272778]
[1766726858788,0.01124454,88932.0,88921.0,0.18272778]
[1766726858989,0.02179271,88931.0,88921.0,0.18272778]
[1766726859152,0.01124467,88931.0,88921.0,0.18272778]
[1766726859351,0.01124505,88928.0,88921.0,0.18272778]
[1766726859538,0.01124492,88929.0,88921.0,0.18272778]
[1766726859736,0.01124517,88927.0,88921.0,0.18272778]
[1766726859948,0.0112453,88926.0,88921.0,0.18272778]
[1766726860392,0.01124581,88922.0,88915.0,0.18262]
[1766726861115,0.01124568,88923.0,88915.0,0.18262]
[1766726861623,0.01124555,88924.0,88915.0,0.18262]
[1766726861829,0.01124568,88923.0,88915.0,0.18262]
[1766726862550,0.01124543,88925.0,88915.0,0.18262]
[1766726863441,0.0112453,88926.0,88915.0,0.18262]
[1766726864090,0.01124543,88925.0,88915.0,0.18262]
[1766726865739,0.01124555,88924.0,88915.0,0.18262]
[1766726867246,0.01124555,88924.0,86250.0,0.005]
[1766726867247,0.06748093,88914.0,88901.0,0.18928]
[1766726867450,0.03557386,88917.0,88901.0,0.01128]
[1766726867785,0.01124821,88903.0,88897.0,0.0002]
[1766726867991,0.01124808,88904.0,88897.0,0.0002]
[1766726868152,0.01124821,88903.0,88897.0,0.0002]
[1766726869195,0.00925834,88902.0,88897.0,0.0002]
[1766726869530,0.01124821,88903.0,88897.0,0.0002]
[1766726869954,0.067489,88904.0,88897.0,0.0002]
[1766726870487,0.01124821,88903.0,88897.0,0.0002]
[1766726870890,0.067489,88904.0,88897.0,0.0002]
[1766726871092,0.01124821,88903.0,88897.0,0.0002]
[1766726871293,0.05623954,88906.0,88897.0,0.0002]
[1766726871835,0.01124821,88903.0,88897.0,0.0002]
[1766726871994,0.01124834,88902.0,88897.0,0.0002]
[1766726872181,0.01124808,88904.0,88897.0,0.0002]
[1766726872378,0.01124821,88903.0,88897.0,0.0002]
[1766726872629,0.01124834,88902.0,88897.0,0.0002]
[1766726872999,0.01124808,88904.0,88897.0,0.0002]
[1766726874519,0.01124821,88903.0,88897.0,0.0002]
[1766726875258,0.01124796,88905.0,88897.0,0.0002]
[1766726876044,0.01124808,88904.0,88897.0,0.0002]
[1766726876244,0.01124796,88905.0,88897.0,0.0002]
[1766726876448,0.06748483,88909.0,88905.0,0.000549]
[1766726876677,0.06751685,88910.0,88897.0,0.18948]
[1766726876678,0.01128,88910.0,88899.0,0.18928]
[1766726876878,0.01128,88910.0,88902.0,0.20052834]
[1766726877430,0.01128,88910.0,88902.0,0.18928]
[1766726880006,0.01128,88910.0,88902.0,0.20052834]
[1766726880388,0.01128,88910.0,88902.0,0.18928]
[1766726880589,0.01128,88910.0,88902.0,0.18933244]
[1766726880816,0.01128,88910.0,88902.0,0.20058078]
[1766726881254,0.01128,88910.0,88902.0,0.18933244]
[1766726882652,0.01128,88910.0,88902.0,0.20058078]
[1766726883049,0.01128,88910.0,88902.0,0.18933244]
[1766726883277,0.01128,88910.0,88902.0,0.20058078]
[1766726884284,0.01128,88910.0,88903.0,0.01124821]
[1766726884482,0.01128,88910.0,88902.0,0.20058078]
[1766726884915,0.01128,88910.0,88902.0,0.18933244]
[1766726885241,0.01128,88910.0,88902.0,0.20058078]
[1766726885437,0.01128,88910.0,88902.0,0.18933244]
[1766726885937,0.01128,88910.0,88902.0,0.20058078]
[1766726886496,0.01128,88910.0,88902.0,0.18933244]
[1766726886989,0.02252732,88910.0,88902.0,0.18933244]
[1766726887196,0.01355082,88903.0,88902.0,0.18878344]
[1766726888413,0.01300182,88903.0,88902.0,0.18878344]
[1766726890227,0.01278608,88903.0,88902.0,0.18878344]
[1766726892716,0.01004813,88910.0,88902.0,0.18878344]
[1766726892922,0.01355082,88905.0,88902.0,0.18878344]
[1766726896166,0.0425909,88910.0,88902.0,0.18878344]
[1766726897012,0.03134358,88910.0,88902.0,0.18878344]
[1766726897362,0.01124745,88909.0,88902.0,0.18878344]
[1766726897562,0.0425909,88910.0,88897.0,0.20016897]
[1766726897769,0.01124745,88909.0,88897.0,0.18900068]
[1766726899107,0.01124745,88909.0,88897.0,0.20024965]
[1766726899670,0.01124745,88909.0,88897.0,0.18900068]
[1766726899876,0.0425909,88910.0,88897.0,0.20024965]
[1766726900171,0.01124745,88909.0,88897.0,0.18900068]
[1766726900377,0.0425909,88910.0,88897.0,0.20024965]
[1766726900839,0.01124745,88909.0,88897.0,0.18900068]
[1766726902096,0.0425909,88910.0,88897.0,0.20024965]
[1766726902295,0.01124745,88909.0,88897.0,0.20024965]
[1766726902661,0.0425909,88910.0,88897.0,0.20024965]
[1766726902835,0.0425909,88910.0,88897.0,0.18900068]
[1766726902836,0.01124745,88909.0,88897.0,0.18900068]
[1766726903372,0.01124758,88908.0,88897.0,0.18900068]
[1766726903591,0.06686959,88910.0,88897.0,0.20024965]
[1766726903725,0.0425909,88910.0,88897.0,0.20024965]
[1766726904127,0.01124745,88909.0,88897.0,0.18900068]
[1766726904459,0.01124758,88908.0,88897.0,0.18900068]
[1766726905545,0.0112477,88907.0,88897.0,0.18900068]
[1766726905759,0.01124758,88908.0,88897.0,0.18900068]
[1766726909009,0.03552727,88909.0,88897.0,0.18900068]
[1766726909397,0.01124758,88908.0,88897.0,0.18900068]
[1766726910396,0.0556234,88910.0,88897.0,0.18900068]
[1766726910544,0.03134358,88910.0,88908.0,0.00055]
[1766726910708,0.01004813,88910.0,88905.0,0.06540837]
[1766726915507,0.01004813,88910.0,88905.0,0.06485937]
[1766726918990,0.01004813,88910.0,88905.0,0.04175792]
[1766726924002,0.02129545,88910.0,88905.0,0.04175792]
[1766726924204,0.01004813,88910.0,88905.0,0.04175792]
[1766726924513,0.02129545,88910.0,88897.0,0.17316068]
[1766726924695,0.01124808,88904.0,88897.0,0.17316068]
[1766726924905,0.01124821,88903.0,88897.0,0.17316068]
[1766726925137,0.01124808,88904.0,88897.0,0.17261068]
[1766726926131,0.0674882,88905.0,88897.0,0.17261068]
[1766726926283,0.01124808,88904.0,88897.0,0.17261068]
[1766726926684,0.01124821,88903.0,88897.0,0.17261068]
[1766726927704,0.01124808,88904.0,88897.0,0.17261068]
[1766726928126,0.01124834,88902.0,88897.0,0.17261068]
[1766726928328,0.01124821,88903.0,88897.0,0.17261068]
[1766726928920,0.01124834,88902.0,88897.0,0.17261068]
[1766726929239,0.01124808,88904.0,88897.0,0.17261068]
[1766726929577,0.01124821,88903.0,88897.0,0.17261068]
[1766726929908,0.01124808,88904.0,88897.0,0.17261068]
[1766726931131,0.01124821,88903.0,88897.0,0.17261068]
[1766726931264,0.0674882,88905.0,88897.0,0.17261068]
[1766726932560,0.01124821,88903.0,88897.0,0.17261068]
[1766726932906,0.01124808,88904.0,88897.0,0.17261068]
[1766726933328,0.0674882,88905.0,88897.0,0.17261068]
[1766726933528,0.01124808,88904.0,88897.0,0.17261068]
[1766726933841,0.05624072,88904.0,88897.0,0.17261068]
[1766726934026,0.01124808,88904.0,88897.0,0.17261068]
[1766726934890,0.01124821,88903.0,88897.0,0.17261068]
[1766726935043,0.01124808,88904.0,88897.0,0.17261068]
[1766726935456,0.01124821,88903.0,88897.0,0.17261068]
[1766726935766,0.01124808,88904.0,88897.0,0.17261068]
[1766726935938,0.01124821,88903.0,88897.0,0.17261068]
[1766726936459,0.01124808,88904.0,88897.0,0.17261068]
[1766726936821,0.0674882,88905.0,88897.0,0.17261068]
[1766726937019,0.01124808,88904.0,88897.0,0.17261068]
[1766726937225,0.01124821,88903.0,88897.0,0.03329523]
[1766726937439,0.01124821,88903.0,88895.0,0.01128]
[1766726937640,0.01135579,88903.0,88895.0,0.01128]
[1766726938154,0.00010758,88903.0,88895.0,0.01128]
[1766726938948,0.01135579,88903.0,88895.0,0.18416]
[1766726939513,0.00010758,88903.0,88895.0,0.18416]
[1766726939761,0.01135579,88903.0,88895.0,0.18416]
[1766726941316,0.01135579,88903.0,88895.0,0.17288]
[1766726941317,0.01138758,88903.0,88895.0,0.17288]
[1766726941531,0.01124834,88902.0,88895.0,0.17288]
[1766726941700,0.02263579,88903.0,88895.0,0.17288]
[1766726941903,0.01124796,88905.0,88893.0,0.17288]
[1766726942060,0.01128,88909.0,88905.0,0.00055]
[1766726942272,0.0112472,88911.0,88903.0,0.00054467]
[1766726942487,0.02252872,88911.0,88904.0,0.17288]
[1766726942690,0.01124682,88914.0,88904.0,0.17288]
[1766726942893,0.02252682,88914.0,88904.0,0.17288]
[1766726943099,0.07876123,88914.0,88904.0,0.17288]
[1766726943276,0.01124707,88912.0,88904.0,0.17288]
[1766726945286,0.01124694,88913.0,88904.0,0.17288]
[1766726945487,0.03376372,88917.0,88908.0,0.17288]
[1766726945695,0.01124606,88920.0,88913.0,0.06085144]
[1766726945890,0.02424797,88923.0,88913.0,0.00456544]
[1766726945891,0.04500667,88923.0,88913.0,0.00456544]
[1766726946209,0.05622876,88923.0,88913.0,0.00456544]
[1766726946408,0.01124606,88920.0,88913.0,0.00456544]
[1766726946589,0.01124619,88919.0,88913.0,0.00456544]
[1766726947001,0.01124631,88918.0,88913.0,0.00456544]
[1766726949243,0.01124619,88919.0,88913.0,0.00456544]
[1766726950774,0.01124619,88919.0,88911.0,0.01128]
[1766726951119,0.09170894,88920.0,88911.0,0.01128]
[1766726951120,0.03547825,88920.0,88911.0,0.18416]
[1766726951323,0.01124606,88920.0,88911.0,0.18416]
[1766726951525,0.01124492,88929.0,88916.0,0.01124656]
[1766726951775,0.01124505,88928.0,88916.0,0.01124656]
[1766726952005,0.01124505,88928.0,88915.0,0.01124669]
[1766726952325,0.01144517,88927.0,88915.0,0.01124669]
[1766726953188,0.01144517,88927.0,88914.0,0.18412682]
[1766726953543,0.0002,88927.0,88916.0,0.01124656]
[1766726953746,0.0002,88927.0,88917.0,0.18524953]
[1766726953949,0.01124505,88928.0,88917.0,0.17288]
[1766726954556,0.02174651,88927.0,88917.0,0.17288]
[1766726954752,0.01124505,88928.0,88917.0,0.17288]
[1766726954953,0.01050092,88927.0,88917.0,0.17288]
[1766726955158,0.01124505,88928.0,88917.0,0.17288]
[1766726955358,0.02174311,88927.0,88917.0,0.17288]
[1766726955558,0.01124517,88927.0,88917.0,0.17288]
[1766726957058,0.01124505,88928.0,88917.0,0.17288]
[1766726957260,0.01124492,88929.0,88917.0,0.18412644]
[1766726957564,0.02174154,88928.0,88917.0,0.17288]
[1766726957761,0.01124505,88928.0,88917.0,0.17288]
[1766726960191,0.01124517,88927.0,88917.0,0.17288]
[1766726960746,0.03543186,88930.0,88917.0,0.18412644]
[1766726960955,0.01124505,88928.0,88917.0,0.17288]
[1766726961303,0.02418707,88930.0,88917.0,0.18412644]
[1766726961507,0.01049343,88929.0,88918.0,0.32708789]
[1766726961840,0.03543186,88930.0,88918.0,0.27085631]
[1766726962037,0.01049348,88929.0,88921.0,0.01124593]
[1766726962249,0.03546707,88930.0,88922.0,0.01124581]
[1766726962444,0.01128,88930.0,88920.0,0.01124606]
[1766726963175,0.01138092,88930.0,88920.0,0.01124606]
[1766726963947,0.01138092,88930.0,88919.0,0.01124619]
[1766726964291,0.01138092,88930.0,88920.0,0.27085606]
[1766726964594,0.01134571,88930.0,88920.0,0.25961]